Cogmind - Beta 14 @@@ ROGUE MODE // 2024.09.29 @ 23:27:03 Player: Some Pennies Result: Destroyed by Q0-FYZ(R) with Subdweller Laser Performance ------------- Evolutions (0) 0 Regions Visited (2) 400 Robots Destroyed (41) 205 Value Destroyed (761) 761 Prototype IDs (2) 40 Alien Tech Used (0) 0 Bonus (0) 0 TOTAL SCORE: 1406 Bonus ------- None Cogmind --------- Core Integrity 0/250 Matter 300/300 Energy 164/200 System Corruption 0% Temperature Cool (36) Movement Treading (320) Ox2 Location -10/Subcaves Parts ------- > --- POWER (1) -------- Subdweller Power Source > --- PROPULSION (2) --- Light Treads > --- UTILITY (2) ------ High-capacity Storage Unit > --- WEAPON (2) ------- Subdweller Laser Subdweller Laser > --- INVENTORY (20) --- Disposable Heat Sink Makeshift System Shield Battle Rifle Battle Rifle Subdweller Machine Gun Grenade Launcher Mining Laser Scrap Shield Fragment (47) Scrap Shield Fragment (43) Scrap Shield Fragment (42) Scrap Shield Fragment (31) Scrap Shield Fragment (19) Peak State ------------ > --- POWER ------------ Subdweller Power Source > --- PROPULSION ------- Light Treads Spiked Treads > --- UTILITY ---------- Scrap Shield > --- WEAPON ----------- Subdweller Machine Gun Battle Cannon > --- INVENTORY -------- Light Treads Light Treads High-capacity Storage Unit Grenade Launcher Mining Laser [Rating: 13] Favorites ----------- Power Ion Engine Engine Ion Engine Propulsion Light Treads Treads Light Treads Utility High-capacity Storage Unit Device Improved Terrain Scanner Storage High-capacity Storage Unit Protection Scrap Shield Weapon Assault Rifle Energy Gun Subdweller Laser Ballistic Gun Assault Rifle Ballistic Cannon Battle Cannon Launcher Grenade Launcher Special Weapon Mining Laser Build | -11 -10 -10 ------- Run | Yrd Mat Sub Slots Evolved . | . . . Power . | . . . Propulsion . | . . . Utility . | . . . Weapon . | . . . Parts Attached 44 | 8 12 24 Power 4 | 2 . 2 Engine 4 | 2 . 2 Core . | . . . Reactor . | . . . Propulsion 7 | 2 2 3 Treads 7 | 2 2 3 Leg . | . . . Wheel . | . . . Hover . | . . . Flight . | . . . Utility 13 | 2 4 7 Device 5 | 1 2 2 Storage 4 | 1 2 1 Processor . | . . . Hackware . | . . . Protection 4 | . . 4 Artifact . | . . . Weapon 20 | 2 6 12 Energy Gun 4 | . . 4 Energy Cannon . | . . . Ballistic Gun 8 | 2 3 3 Ballistic Cannon 1 | . . 1 Launcher 3 | . 2 1 Special Weapon 4 | . 1 3 Impact Weapon . | . . . Slashing Weapon . | . . . Piercing Weapon . | . . . Special Melee Weapon . | . . . Unidentified Prototypes . | . . . Parts Lost 5 | . . 5 Power 2 | . . 2 Propulsion 2 | . . 2 Utility 1 | . . 1 Weapon . | . . . Highest Loss Streak 3 | . . 3 To Critical Strikes . | . . . Average Slot Usage (%) 93 | . 99 87 Engine 13 | . 14 13 Treads 27 | . 27 27 Device 8 | . 14 3 Storage 8 | . 14 3 Protection 5 | . . 9 Energy Gun 8 | . . 15 Ballistic Gun 17 | . 27 9 Ballistic Cannon 1 | . . 2 Peak Build Rating 13 | 7 11 13 Average Rating 10 | 5 10 11 On Entrance 6 | . 7 11 Naked Turns . | . . . Heaviest Build 53 | 15 50 53 Greatest Support 40 | 40 40 40 Greatest Overweight (x) 1 | . 1 1 Average Overweight (x) . | . . . Largest Inventory Capacity 20 | 8 20 20 Average Capacity 12 | 7 17 9 Most Carried 20 | 5 20 20 Average Carried 12 | 3 16 8 Final Capacity 20 | 8 20 20 Final Carried 20 | 5 20 12 Class Distribution -------------------- 67% | Mutant 22% | Subdweller-Mutant 5% | Cobbler-Mutant 4% | Scavenger-Mutant Dominant Class ---------------- Mutant | -10/Materials Subdweller-Mutant | -10/Subcaves Resources | -11 -10 -10 ----------- Run | Yrd Mat Sub Matter Collected 1402 | 301 374 727 Remotely . | . . . Salvage Created 1258 | 155 716 387 Parts 95 | 9 56 30 Haulers Intercepted 2 | . 2 . Recyclers Shooed 2 | . 2 . Parts Field Recycled . | . . . Retrieved Matter . | . . . Parts Self-Destructed 21 | . . 21 Prevented . | . . . Kills | -11 -10 -10 ------- Run | Yrd Mat Sub Combat Hostiles Destroyed 26 | . 11 15 Guns 20 | . 9 11 Cannons 2 | . . 2 AOE 4 | . 2 2 Classes Destroyed 8 | 2 5 1 Worker 2 | . 2 . Tunneler 6 | 3 3 . Hauler 2 | . 2 . Recycler 3 | 1 2 . Watcher 2 | . 2 . Swarmer 12 | . 6 6 Grunt 5 | . 5 . Subdweller 9 | . . 9 Best Kill Streak 5 | 2 5 4 Combat Bots Only 4 | . 3 4 Max Kills in Single Turn 2 | 1 2 2 Gunslinging . | . . . Exploded 2 | . 2 1 Melee . | . . . Uniques/NPCs Destroyed . | . . . Combat | -11 -10 -10 -------- Run | Yrd Mat Sub Hostile Shots Fired 143 | . 36 107 Missed 35 | . 9 26 Damage Taken 1821 | . 276 1545 Core 260 | . 69 191 Absorbed by Shields . | . . . Redirected to Shielding 8 | . . 8 Regen/Repaired (Parts) 87 | . 87 . Core Remaining (%) 100 | 100 . . Volleys Fired 143 | 6 49 88 Largest 2 | 2 2 2 Hottest 120 | 40 100 120 Shots Fired 247 | 12 93 142 Gun 213 | 12 88 113 Cannon 9 | . . 9 Launcher 6 | . 2 4 Special 19 | . 3 16 Kinetic 170 | 12 88 70 Thermal 71 | . 3 68 Explosive 6 | . 2 4 Electromagnetic . | . . . Robot Hit Streak 19 | 6 13 19 Robot Miss Streak 3 | 2 3 2 Penetration Max . | . . . Secondary Targets 2 | . . 2 Max Gunslinging Chain 1 | . . 1 Shots Hit Robots 145 | 8 53 84 Core Hits 56 | 5 28 23 Critical Kills 1 | . 1 . Critical Parts Destroyed 1 | . 1 . Critical Strikes 3 | . 2 1 Destroy 2 | . 2 . Blast 1 | . . 1 Melee Attacks . | . . . Impact . | . . . Slashing . | . . . Piercing . | . . . Sneak Attacks . | . . . Combat Hostiles . | . . . Follow-up Attacks . | . . . Damage Inflicted 2645 | 108 785 1752 Guns 2128 | 108 665 1355 Cannons 159 | . . 159 Explosions 358 | . 120 238 Melee . | . . . Ramming . | . . . Kinetic 1503 | 108 665 730 Thermal 784 | . . 784 Explosive 358 | . 120 238 Electromagnetic . | . . . Impact . | . . . Slashing . | . . . Piercing . | . . . Highest Corruption . | . . . Average Corruption . | . . . Corruption Purged . | . . . Corruption Blocked . | . . . Overload Shots . | . . . Overflow Damage . | . . . Projectiles . | . . . Explosions . | . . . Melee . | . . . Knockbacks 1 | . . 1 Impact . | . . . Kinetic 1 | . . 1 Secondary . | . . . Self-Inflicted Damage . | . . . Shots . | . . . Rammed . | . . . Targets Rammed . | . . . Kicked . | . . . Crushed . | . . . Highest Temperature 384 | . 40 384 Average Temperature 62 | . 12 78 Received Heat Transfer 842 | . 87 755 Effects 1 | . . 1 Interference 1 | . . 1 Siege Activations . | . . . Robots Corrupted . | . . . Combat Hostiles . | . . . Parts Fried . | . . . Impact Corruptions . | . . . Robots Melted . | . . . Combat Hostiles . | . . . Parts Melted 1 | . . 1 Heat Transferred 950 | . . 950 Parts Sabotaged . | . . . Parts Stolen . | . . . Parts Stripped . | . . . Power Chain Reactions . | . . . Alert | -11 -10 -10 ------- Run | Yrd Mat Sub Peak Influence 237 | 20 237 . Initial 13 | . 13 . Average 58 | 10 61 . Maximum Alert Level 1 | . 1 . Low Security (%) 92 | 100 91 . Level 1 7 | . 8 . Level 2 . | . . . Level 3 . | . . . Level 4 . | . . . Level 5 . | . . . High Security . | . . . Max Security . | . . . Squads Dispatched 1 | . 1 . Investigation 1 | . 1 . Extermination . | . . . Reinforcement . | . . . Assault . | . . . Garrison . | . . . Intercept . | . . . Searches Triggered . | . . . Construction Impeded . | . . . Haulers Reinforced . | . . . Active Scanning Responses . | . . . Cargo Convoy Interrupts . | . . . Stealth | -11 -10 -10 --------- Run | Yrd Mat Sub Distress Signals 1 | . 1 . Communications Jammed . | . . . Distress Signals . | . . . Times Spotted 41 | . 23 18 Peak Tracking Total 6 | . 4 6 Tactical Retreats 4 | . 3 1 Traps | -11 -10 -10 ------- Run | Yrd Mat Sub Traps Triggered 3 | . . 3 Indirectly . | . . . Trap Hack Attempts . | . . . Triggered . | . . . Disarmed . | . . . Reprogrammed . | . . . Reused . | . . . Traps Extracted . | . . . Installed . | . . . Triggered . | . . . Machines | -11 -10 -10 ---------- Run | Yrd Mat Sub Machines Disabled . | . . . Max in Single Turn . | . . . Machines Repaired . | . . . Machines Dismantled . | . . . Machines Sabotaged . | . . . Overloaded Fab Kills . | . . . Hacking | -11 -10 -10 --------- Run | Yrd Mat Sub Machines Accessed 10 | . 9 1 Terminals 7 | . 7 . Fabricators . | . . . Repair Stations 1 | . 1 . Recycling Units 1 | . 1 . Scanalyzers . | . . . Garrison Access . | . . . Total Hacks 28 | . 25 3 Successful 18 | . 15 3 Failed 10 | . 10 . Catastrophic 1 | . 1 . Database Lockouts . | . . . Manual 15 | . 15 . Terminals 18 | . 18 . Fabricators . | . . . Repair Stations 4 | . 4 . Recycling Units 3 | . 3 . Scanalyzers . | . . . Garrison Access . | . . . Terminal Hacks 6 | . 3 3 Record 3 | . . 3 Part Schematic 1 | . 1 . Robot Analysis 1 | . 1 . Prototype ID Bank 1 | . 1 . Fabricator Hacks . | . . . Repair Station Hacks 4 | . 4 . Scan Component 2 | . 2 . Repair 2 | . 2 . Recycling Unit Hacks 1 | . 1 . Retrieve Components 1 | . 1 . Scanalyzer . | . . . Garrison Access Hacks . | . . . Unauthorized Hacks 7 | . 7 . Terminals 6 | . 6 . Botnet 1 | . 1 . Skim 5 | . 5 . Fabricators . | . . . Repair Stations . | . . . Recycling Units 1 | . 1 . Tunnel 1 | . 1 . Scanalyzers . | . . . Garrison Access . | . . . Data Cores Recovered . | . . . Used . | . . . Hacking Detections 8 | . 8 . Full Trace Events . | . . . Feedback Events . | . . . Feedback Blocked . | . . . Robot Schematics Acquired . | . . . Robots Built . | . . . Authchips . | . . . Time . | . . . Total Robot Build Rating . | . . . Part Schematics Acquired 1 | . 1 . Parts Built . | . . . Authchips . | . . . Time . | . . . Total Part Build Rating . | . . . Parts Repaired 2 | . 2 . Time 52 | . 52 . Parts Recycled . | . . . Recycled Matter . | . . . Retrieved Matter . | . . . Retrieved Components 5 | . 5 . Parts Scanalyzed . | . . . Part Schematics Acquired . | . . . Parts Damaged . | . . . Bothacking | -11 -10 -10 ------------ Run | Yrd Mat Sub Used RIF Installer . | . . . Robots Hacked . | . . . Non-combat . | . . . Combat . | . . . Robot Hacks Applied . | . . . Relay Couplers Released . | . . . Fabnet Peak Effective % . | . . . Robots Rewired . | . . . Allies Hacked . | . . . Hacks Repelled . | . . . Allies | -11 -10 -10 -------- Run | Yrd Mat Sub Total Allies . | . . . Largest Group . | . . . Highest-Rated Group . | . . . Highest-Rated Ally . | . . . Total Orders . | . . . Ally Attacks . | . . . Total Damage . | . . . Kills . | . . . Allies Corrupted . | . . . Allies Melted . | . . . Intel | -11 -10 -10 ------- Run | Yrd Mat Sub Robot Analysis Total 1 | . 1 . Derelict Logs Recovered 1 | . . 1 Drone Launches . | . . . Drone Recoveries . | . . . Exploration | -11 -10 -10 ------------- Run | Yrd Mat Sub Turns Passed 4384 | 122 1911 2351 Spaces Moved 1862 | 58 766 1038 Core 3 | 3 . . Treads 1859 | 55 766 1038 Legs . | . . . Wheels . | . . . Hover . | . . . Flight . | . . . Fastest Speed 50 | 50 160 160 Average Speed 191 | 154 213 177 Slowest Speed 250 | 160 240 250 Overloaded Moves . | . . . Propulsion Burnouts . | . . . Robots Hopped . | . . . Cave-ins Triggered . | . . . Exploration Rate (%) 50 | 4 93 53 Regions Visited 2 Branch Regions 1 Pre-discovered Areas 3 | . 2 1 Known Exits Taken 1 | . 1 . Unknown Exits Taken 1 | 1 . . Scrap Searched 10 | . . 10 Spaces Dug . | . . . Terrain Destroyed 33 | . 18 15 Melee . | . . . Projectile . | . . . AOE 33 | . 18 15 Terrain Rammed . | . . . Walls Destroyed . | . . . Machines Disabled . | . . . Actions | -11 -10 -10 --------- Run | Yrd Mat Sub Total 2395 | 75 940 1380 Wait 266 | . 87 179 Move 1860 | 57 765 1038 Hop . | . . . Pick Up 39 | 4 20 15 Fast Attach 14 | 7 1 6 Attach 8 | . 1 7 Detach 1 | . . 1 Swap 22 | 1 10 11 Drop 37 | . 7 30 Fire 143 | 6 49 88 Melee . | . . . Ram . | . . . Kick . | . . . Crush . | . . . Escape Stasis . | . . . Rewire . | . . . Trap . | . . . Miscellaneous 5 | . . 5 Route ------- -11/Scrapyard -10/Materials (discovered 5 exits: *Mat x3 / [*Min] / *Sub) -10/Subcaves (discovered 2 exits: [*Mat] / [*Rec]) History --------- Turn | Location | Event 17 | -11/Scrapyard | Discovered new exit (range 15) 123 | -11/Scrapyard | Entered Materials 327 | -10/Materials | Build established: Mutant 386 | -10/Materials | Discovered new exit (range 15) 485 | -10/Materials | Discovered new exit (range 6) 659 | -10/Materials | Discovered new exit (range 12) 985 | -10/Materials | Learned location of Storage (-8) 1039 | -10/Materials | Learned Storage garrison access intel 1081 | -10/Materials | Learned location of 1 exit from Recycling 1113 | -10/Materials | Identified exit to Materials 1113 | -10/Materials | Identified exit to Subcaves 1150 | -10/Materials | Learned 2 Mines zone layouts 1176 | -10/Materials | Learned Storage emergency access door positions 1676 | -10/Materials | Repaired Lgt. Treads 1704 | -10/Materials | Repaired Lgt. Treads 2034 | -10/Materials | Entered Subcaves 2103 | -10/Subcaves | Shifting Twisted Machinery released Mak. System Restoration Module 2184 | -10/Subcaves | Shifting Twisted Machinery released Flamer 2198 | -10/Subcaves | Core integrity fell below 50% 2428 | -10/Subcaves | Discovered new exit (range 7) 3549 | -10/Subcaves | Build established: Subdweller-Mutant 3582 | -10/Subcaves | Shifting Twisted Machinery released Riot Gun 3590 | -10/Subcaves | Shifting Twisted Machinery released Scrap Shield 3624 | -10/Subcaves | Discovered new exit (range 14) 3723 | -10/Subcaves | Learned location of Mines (-10) 3885 | -10/Subcaves | Visited Clippyterm 3889 | -10/Subcaves | Learned Factory fabricator intel 4011 | -10/Subcaves | Shifting Twisted Machinery released Flamer 4070 | -10/Subcaves | Shifting Twisted Machinery released Battle Rifle 4270 | -10/Subcaves | Core integrity fell below 20% 4289 | -10/Subcaves | Lost 3 parts (1p1n1u) 4385 | -10/Subcaves | Destroyed by Q0-FYZ(R) with Subdweller Laser Last Messages --------------- 04235_ Scrap Shield destroyed. 04253_ Destroyed Scrap Shield. 04254_ Lgt. Treads destroyed. 04258_ Sub. Power Source destroyed. 04259_ YD-DZZ(R) destroyed. 04266_ Acquired Sub. Machine Gun. 04267_ Triggered Shrapnel Trap. 04267_ An expanding cloud of shrapnel blasts out in all directions. 04276_ Sub. Optics melted. 04276_ JP-WU5(R) destroyed. 04281_ Acquired Sub. Power Source. 04285_ Acquired Sub. Laser. 04290_ Acquired Battle Rifle. 04294_ Acquired 37 matter. 04299_ Acquired Scrap Shield Fragment. 04345_ Acquired 39 matter. 04350_ Acquired Scrap Shield Fragment. 04356_ Acquired Disposable Heat Sink. 04377_ Spk. Treads destroyed. Map ----- +----------------------------------------------------+ | ## #??????????????????????????????????? | | [! ##??????????????????????????????????? | | %! ##??????????????????????????????????? | | ## #??????????????????????????????????? | | #??????????????????????????????????? | | % # #??????????????????????????????????? | | # ##??????????????????????????????????? | | ### % ##???????????????????????????????????? | | ?## % # # #????????????????????????????????????? | | ## # ## #???????????????????????????????????? | | # #?# #??????????????????????????????????? | | ^ ^ ##? #??????????????????????????????????? | | ^ #? ##??????????????????????????????????? | | #?##?????###?##????????????????????????? | | ######???????## ## #"???????????????????????? | | ##??????????## ????????????????????????? | | ###????????? ?????????????????????????? | | ##???????## #??????????????????????????? | | ^ #???????# #???????????????????????????? | | #### ##????#### ####??##????????????????????? | | ???# ##??## " ### ##???????????????????? | | ???# ""#### ""##" ##?????# ????????? | | ???#^ "" R " ### #????????? | | ???# % #??????????? | | ???## #### #???????????? | | ????#" # ##??### @ ### ######???????????? | | ????###""#"######?????######????#????????????????? | | ??????######?????????????????????????????????????? | | ?????????????????????????????????????????????????? | | ?????????????????????????????????????????????????? | | ?????????????????????????????????????????????????? | | ?????????????????????????????????????????????????? | | ?????????????????????????????????????????????????? | | ?????????????????????????????????????????????????? | | ?????????????????????????????????????????????????? | | ?????????????????????????????????????????????????? | | ?????????????????????????????????????????????????? | | ?????????????????????????????????????????????????? | | ?????????????????????????????????????????????????? | | ?????????????????????????????????????????????????? | | ?????????????????????????????????????????????????? | | | | | | | | | | | | | | | | | | | +----------------------------------------------------+ Best States ------------- Heat Dissipation 25 Energy Generation 15 Energy Capacity 250 Matter Stores 300 Matter Capacity 300 Sight Range 16 Terrain Scan Range 16 Terrain Scan Density 10 Armor Coverage 800 Core Shielding 20 Evasion (%) 40 Recoil Reduction 2 Item Schematics ----------------- Huge Storage Unit | -10/Materials | Hacked Robot Schematics ------------------ None Fabricated ------------ Nothing Alien Tech Used ----------------- None Achievements -------------- None Challenges ------------ None Game ------ Seed AluminumSurveybotProtection Manual? 0 Play Time 00:20:30 Cumulative 345.4 hours Start 2024.09.29 @ 23:06:04 End 2024.09.29 @ 23:27:03 Sessions 1 Manual Loads 0 Difficulty Rogue Special Mode None Game No. 250 Rogue 245 Adventurer 5 Explorer 0 Win Type - Total 7 Types 4/0/3/0/0/0/0/0/0 Lore% 67 Gallery% 85 Achievement% 70 Wizard Run 0 Options --------- Layout 2 ASCII 0 Keyboard 0 Movement Mouse Keybinds 0 Fullscreen 2 Font 24/Smallcaps Map View 50x44 Zoom Use 0% Tactical HUD 1 Map Filters NONE Filters NONE Steam 1 RUN: 18f5fd98-620c-4881-bfe2-092ed9a9722b